fUSD/lending_fUSD_20260313
["ID","MTS","AMOUNT","RATE_DAILY","PERIOD"]
[408315455,1773402642550,-1036.61538462,0.0002737,2]
[408315456,1773402642559,-943.84615385,0.0002737,2]
[408315457,1773402642569,-648.23076923,0.0002737,2]
[408315458,1773402642578,-1105.84615385,0.0002737,2]
[408315459,1773402642588,-676.38461538,0.0002737,2]
[408315460,1773402642598,-828.69230769,0.0002737,2]
[408315461,1773402642607,-952.61538462,0.0002737,2]
[408315462,1773402642617,-468.23076923,0.0002737,2]
[408315463,1773402642626,-729.23076923,0.0002737,2]
[408315464,1773402642636,-1148.53846154,0.0002737,2]
[408315465,1773402642646,-1069.84615385,0.0002737,2]
[408315466,1773402642655,-651.0,0.0002737,2]
[408315467,1773402642665,-745.84615385,0.0002737,2]
[408315468,1773402642674,-541.15384615,0.0002737,2]
[408315469,1773402642684,-894.69230769,0.0002737,2]
[408315470,1773402642693,-1147.15384615,0.0002737,2]
[408315471,1773402642703,-1049.53846154,0.0002737,2]
[408315472,1773402642712,-978.23076923,0.0002737,2]
[408315473,1773402642721,-1097.30769231,0.0002737,2]
[408315474,1773402642730,-281.46766893,0.0002737,2]
[408315475,1773402642740,-4131.5337365,0.0002739,2]
[408315476,1773402642749,-8161.95557552,0.0002739,2]
[408315477,1773402642759,-300.0,0.00027397,2]
[408315478,1773402642767,-151.0,0.00027397,2]
[408315479,1773402642777,-151.0,0.00027397,2]
[408315481,1773402642786,-151.0,0.00027397,2]
[408315482,1773402642796,-151.0,0.00027397,2]
[408315483,1773402642804,-151.0,0.00027397,2]
[408315484,1773402642814,-151.0,0.00027397,2]
[408315486,1773402642824,-277.447861,0.00027397,2]
[408315487,1773402642834,-1000.0,0.00027397,20]
[408315488,1773402642844,-18535.2,0.00027397,10]
[408315489,1773402642853,-15446.0,0.00027397,10]
[408315490,1773402642862,-222.07,0.00027478,2]
[408315491,1773402642872,-1025.00674103,0.00027509,5]
[408315492,1773402642881,-1123.8148599,0.00027509,5]
[408315493,1773402642890,-1116.11856694,0.00027509,5]
[408315494,1773402642899,-1040.77487643,0.00027509,5]
[408315495,1773402642908,-1016.05525484,0.00027509,5]
[408315496,1773402642918,-1148.34051246,0.00027509,5]
[408315497,1773402642927,-1073.93835066,0.00027509,5]
[408315498,1773402642936,-1051.94953771,0.00027509,5]
[408315499,1773402642946,-1002.83605876,0.00027509,5]
[408315500,1773402642955,-1063.75810085,0.00027509,5]
[408315501,1773402642964,-1115.28802573,0.00027509,5]
[408315502,1773402642973,-1054.86187804,0.00027509,5]
[408315503,1773402642983,-1093.10965865,0.00027509,5]
[408315504,1773402642992,-1104.833907,0.00027509,5]
[408315505,1773402643001,-1028.27645476,0.00027509,5]
[408315506,1773402643011,-1019.09167873,0.00027509,5]
[408315507,1773402643020,-1079.83978775,0.00027509,5]
[408315508,1773402643029,-1107.34308057,0.00027509,5]
[408315509,1773402643039,-1052.17296982,0.00027509,5]
[408315510,1773402643050,-1274.58328956,0.00027509,5]
[408315511,1773402643060,-529.91,0.00027877,2]
[408315512,1773402643070,-1298.5,0.00027938,2]
[408315513,1773402643078,-151.0,0.00027997,7]
[408315514,1773402643088,-155.0,0.00027999,2]
[408315515,1773402643097,-51128.60552095,0.00028,2]
[408315516,1773402643106,-181.10916033,0.00028,25]
[408315517,1773402643115,-160.0,0.00028,3]
[408315518,1773402643125,-163.18,0.00028225,2]
[408315519,1773402643134,-2000.0,0.00028345,2]
[408315520,1773402643143,-3000.0,0.00028399,2]
[408315521,1773402643152,-219.13803284,0.00028694,2]
[408315522,1773402643162,-350.90633998,0.00029067,2]
[408315523,1773402643171,-1024.72861785,0.0002913,2]
[408315524,1773402643181,-150.0,0.00029315,2]
[408315526,1773402643190,-152.0,0.00029346,4]
[408315527,1773402643200,-150.0,0.00029392,2]
[408315528,1773402643209,-150.0,0.00029683,2]
[408315529,1773402643219,-507.0,0.00029877,2]
[408315530,1773402643228,-70951.02338239,0.000299,2]
[408315532,1773402643367,-151.0,0.00024349,2]
[408315533,1773402643378,-8416.96856181,0.000299,2]
[408315534,1773402643388,-2314.93306343,0.000299,2]
[408315535,1773402643398,-178.38,0.00029948,2]
[408315536,1773402643409,-18563.15424559,0.0003,2]
[408315537,1773402643418,-19991.01635862,0.0003,2]
[408315538,1773402643427,-7527.91105502,0.0003,2]
[408315539,1773402643436,-13938.9127279,0.0003013,2]
[408315540,1773402643446,-7780.17052795,0.0003013,2]
[408315541,1773402643455,-204.915609,0.00030137,7]
[408315542,1773402643465,-15633.92089918,0.000302,2]
[408315543,1773402643474,-250.27,0.000302,7]
[408315544,1773402643484,-2549.24,0.000302,7]
[408315545,1773402643493,-475.66916377,0.00030709,3]
[408315546,1773402643502,-51889.31889523,0.00031,2]
[408315547,1773402643511,-151.0,0.00031,7]
[408315548,1773402643520,-151.0,0.00031,7]
[408315549,1773402643529,-151.0,0.00031,7]
[408315550,1773402643539,-151.0,0.00031,7]
[408315551,1773402643548,-218.520327,0.00031,7]
[408315552,1773402643558,-218.520327,0.00031,7]
[408315553,1773402643567,-218.520327,0.00031,7]
[408315554,1773402643576,-218.520327,0.00031,7]
[408315555,1773402643585,-282.14261,0.00031,7]
[408315556,1773402643595,-151.0,0.00031,7]
[408315557,1773402643604,-161.52,0.0003105,2]
[408315558,1773402643614,-507.0,0.00031231,3]
[408315559,1773402643623,-1384.22,0.00031233,2]
[408315560,1773402643632,-442.12259034,0.00031305,2]
[408315561,1773402643642,-1000.0,0.00031316,30]
[408315562,1773402643651,-704.33,0.000316,14]
[408315563,1773402643661,-152.0,0.00032184,5]
[408315564,1773402643670,-150.0,0.00032219,2]
[408315565,1773402643679,-553.19,0.00032219,2]
[408315566,1773402643689,-993.09732532,0.00032276,2]
[408315567,1773402643699,-999.09711036,0.00032277,2]
[408315568,1773402643708,-2000.0,0.00032377,2]
[408315569,1773402643717,-2549.24,0.000324,7]
[408315570,1773402643726,-2000.0,0.00032477,2]
[408315571,1773402643736,-250.27,0.000325,7]
[408315572,1773402643745,-1005.0,0.00032518,11]
[408315573,1773402643755,-2000.0,0.00032577,2]
[408315574,1773402643764,-507.0,0.00032586,5]
[408315575,1773402643773,-2000.0,0.00032677,2]
[408315576,1773402643936,-2000.0,0.00032777,2]
[408315577,1773402643946,-4862.41447292,0.000328,2]
[408315578,1773402643958,-300.0,0.00032869,10]
[408315579,1773402643967,-666.0,0.00032869,10]
[408315580,1773402643976,-300.0,0.00032869,10]
[408315581,1773402643986,-248.999999,0.0003287,2]
[408315582,1773402643995,-50000.0,0.0003287,30]
[408315583,1773402644004,-151.0,0.0003287,7]
[408315584,1773402644013,-151.0,0.0003287,7]
[408315585,1773402644022,-288.673177,0.0003287,7]
[408315586,1773402644032,-288.673177,0.0003287,7]
[408315587,1773402644042,-288.673177,0.0003287,7]
[408315588,1773402644051,-288.673177,0.0003287,7]
[408315589,1773402644060,-150.08331262,0.00032877,3]
[408315590,1773402644070,-347.01,0.00032877,2]
[408315591,1773402644080,-1260.9,0.00032877,120]
[408315592,1773402644090,-300.0,0.00032899,10]
[408315593,1773402644099,-666.0,0.00032899,10]
[408315594,1773402644108,-134722.87,0.000329,14]
[408315595,1773402644117,-478.93,0.000329,30]
[408315596,1773402644126,-703.03,0.000329,7]
[408315597,1773402644135,-7963.44,0.000329,2]
[408315598,1773402644144,-163.66963598,0.000329,2]
[408315599,1773402644153,-151.0,0.00032997,14]
[408315600,1773402644162,-300.0,0.00032999,10]
[408315601,1773402644171,-51640.73736378,0.00033,2]
[408315602,1773402644181,-26554.74624641,0.00033,2]
[408315603,1773402644190,-1285.19,0.00033,21]
[408315604,1773402644199,-563.834694,0.00033,14]
[408315605,1773402644208,-870.0,0.00033,2]
[408315606,1773402644217,-221.74,0.00033425,2]
[408315607,1773402644226,-2549.24,0.000336,30]
[408315608,1773402644235,-350.90633998,0.0003365,2]
[408315609,1773402644244,-351.0904975,0.0003365,2]
[408315610,1773402644254,-150.0,0.0003383,2]
[408315611,1773402644264,-507.0,0.00033941,6]
[408315612,1773402644274,-440.14,0.00033958,120]
[408315613,1773402644284,-801.65599615,0.00034114,120]
[408315614,1773402644293,-1283.77264804,0.00034114,120]
[408315615,1773402644303,-325.68874222,0.00034114,120]
[408315616,1773402644312,-887.18,0.00034247,5]
[408315617,1773402644321,-440.14,0.00034319,120]
[408315618,1773402644331,-13516.6507,0.00034521,2]
[408315619,1773402644344,-1471.40706408,0.00034579,2]
[408315620,1773402644354,-40643.21350471,0.000346,14]
[408315621,1773402644370,-94079.65649529,0.000346,14]
[408315622,1773402644379,-178.38,0.00034612,2]
[408315623,1773402644388,-440.14,0.00034679,120]
[408315624,1773402644397,-496.8,0.00034712,30]
[408315625,1773402644408,-328.86,0.00034712,30]
[408315626,1773402644418,-2314.93306343,0.000349,2]
[408315627,1773402644427,-219.0,0.00034989,2]
[408315628,1773402644436,-4725.92166493,0.00035,2]
[408315629,1773402644446,-5000.0,0.00035,7]
[408315630,1773402644455,-17200.76322306,0.00035,10]
[408315631,1773402644467,-339.79088241,0.00035,10]
[408315634,1773402646077,-377.0,0.00032677,30]
[408315635,1773402646087,-571.0,0.00032677,30]
[408315636,1773402646097,-49958.95166533,0.00035,10]
[408315637,1773402646106,-1002.04392331,0.00035,21]
[408315638,1773402646116,-1000.0,0.00035,30]
[408315639,1773402646125,-1000.0,0.00035,30]
[408315640,1773402646134,-151.0,0.00035,7]
[408315641,1773402646144,-151.0,0.00035,7]
[408315642,1773402646153,-151.0,0.00035,7]
[408315643,1773402646163,-218.520327,0.00035,7]
[408315644,1773402646172,-218.520327,0.00035,7]
[408315645,1773402646181,-871.0,0.00035,2]
[408315646,1773402646190,-218.520327,0.00035,7]
[408315647,1773402646200,-218.520325,0.00035,7]
[408315648,1773402646209,-151.0,0.00035,7]
[408315649,1773402646219,-152.0,0.00035021,6]
[408315650,1773402646229,-440.14,0.0003504,120]
[408315651,1773402646238,-178.38,0.00035111,2]
[408315652,1773402646247,-507.0,0.00035295,8]
[408315653,1773402646257,-2549.24,0.000353,30]
[408315654,1773402646267,-440.14,0.000354,120]
[408315655,1773402646276,-150.0,0.00035522,2]
[408315656,1773402646285,-233.97218046,0.00035589,120]
[408315657,1773402646294,-250.27,0.000356,30]
[408315658,1773402646304,-300.0,0.00035609,10]
[408315659,1773402646314,-140271.99151526,0.0003561,2]
[408315671,1773403631795,5000.0,0.00032877,120]
[408315672,1773403639366,176.66,9.588e-05,2]
[408315673,1773403639451,176.66,0.00011985,2]
[408315685,1773403831940,-176.66,0.00014382,2]
[408315686,1773403831950,-5000.0,0.000162,5]
[408315687,1773403831959,-176.66,0.00016779,2]
[408315688,1773403831967,-456.44,0.00018817,2]
[408315689,1773403831976,-972.66992,0.00018872,2]
[408315690,1773403831985,-500.0,0.00018968,2]
[408315691,1773403831994,-176.66,0.00019176,2]
[408315692,1773403832198,-166.66,0.00019381,2]
[408315693,1773403832207,-500.0,0.00019396,2]
[408315694,1773403832217,-456.44,0.00019758,2]
[408315695,1773403832226,-846.9257,0.000198,2]
[408315696,1773403832236,-4067.72000362,0.0001989,2]
[408315697,1773403832245,-292.0,0.00019894,2]
[408315698,1773403832255,-1000.0,0.000199,2]
[408315699,1773403832264,-1507.9355,0.000199,2]
[408315700,1773403832274,-2497.3535,0.000199,2]
[408315702,1773403832283,-152.90640865,0.000199,6]
[408315704,1773403832292,-157.72907985,0.000199,6]
[408315706,1773403832301,-158.76696497,0.000199,6]
[408315708,1773403832311,-159.31202736,0.000199,6]
[408315710,1773403832320,-314.2348252,0.000199,2]
[408315712,1773403832329,-4698.43332558,0.000199,2]
[408315714,1773403832338,-25196.9484776,0.000199,2]
[408315716,1773403832351,-9259.73225373,0.000199,2]
[408315718,1773403832360,-177.33230872,0.000199,2]
[408315721,1773403832369,-292.0,0.00019901,2]
[408315723,1773403832379,-306.27162095,0.00019921,2]
[408315725,1773403832388,-500.0,0.00019973,2]
[408315727,1773403832398,-500.0,0.00019973,2]
[408315729,1773403832407,-500.0,0.00019973,2]
[408315731,1773403832417,-4936.65706094,0.0001998,2]
[408315733,1773403832426,-204.47685277,0.0001999,2]
[408315734,1773403832435,-204.47685277,0.0001999,2]
[408315735,1773403832445,-204.47685277,0.0001999,2]
[408315736,1773403832454,-500.0,0.00019999,2]
[408315737,1773403832464,-500.0,0.00019999,2]
[408315738,1773403832473,-500.0,0.00019999,2]
[408315739,1773403832483,-500.0,0.00019999,2]
[408315740,1773403832494,-515.52448038,0.00019999,2]
[408315741,1773403832503,-501.88920658,0.00019999,2]
[408315742,1773403832513,-540.40783545,0.00019999,2]
[408315743,1773403832522,-500.0,0.00019999,2]
[408315744,1773403832532,-155.0,0.00019999,2]
[408315745,1773403832542,-244.50292027,0.00019999,2]
[408315746,1773403832560,-204.25850081,0.00019999,2]
[408315747,1773403832569,-170.50093631,0.00019999,2]
[408315748,1773403832579,-500.0,0.00019999,2]
[408315749,1773403832588,-200.50634497,0.00019999,2]
[408315750,1773403832597,-500.0,0.00019999,2]
[408315751,1773403832606,-298915.02096892,0.0002,2]
[408315752,1773403832619,-21579.6152542,0.0002,2]
[408315753,1773403832630,-921.71985383,0.0002,2]
[408315754,1773403832642,-579.76289887,0.0002,2]
[408315755,1773403832653,-350.6379199,0.0002,2]
[408315756,1773403832664,-2223.61048288,0.0002,2]
[408315757,1773403832675,-735.86868897,0.0002,2]
[408315758,1773403832686,-1581.17296328,0.0002,2]
[408315759,1773403832697,-729.51283028,0.0002,2]
[408315760,1773403832708,-856.65432573,0.0002,2]
[408315761,1773403832723,-972.66991975,0.0002,2]
[408315762,1773403838005,-577.21868921,0.000196,2]
[408315763,1773403838017,-527.81454381,0.000196,2]
[408315764,1773403838027,-375.62780265,0.0002,2]
[408315765,1773403838112,-634.59901641,0.0002,2]
[408315766,1773403838124,-4945.28451343,0.0002,2]
[408315767,1773403838166,-598.54452937,0.0002,2]
[408315768,1773403838178,-1079.98280217,0.0002,2]
[408315835,1773403840176,-1045.0176139,0.000196,2]
[408315836,1773403840187,-1060.06212322,0.000196,2]
[408315837,1773403840197,-3330940.44626601,0.0002,2]
[408315839,1773403840721,-9418.76017223,0.0002,2]
[408315904,1773403843015,-1012.85629533,0.000196,2]
[408315905,1773403843025,-1057.74316693,0.000196,2]
[408315906,1773403843034,-491949.83497843,0.0002,2]
[408315907,1773403843046,-337.42,0.0002,2]
[408315908,1773403843064,-540.82914353,0.0002,2]
[408315909,1773403843076,-10560.53160195,0.0002,2]
[408315910,1773403843225,-866.02502778,0.0002,2]
[408315911,1773403843280,-974.74442038,0.0002,2]
[408315912,1773403846023,-1079.10266773,0.000196,2]
[408315913,1773403846033,-1055.1748152,0.000196,2]
[408315914,1773403846043,-5107.94316643,0.000199,2]
[408315915,1773403846054,-12083.7123,0.000199,2]
[408315916,1773403846130,-1390.0,0.000199,2]
[408315917,1773403846346,-18269.25083808,0.000199,2]
[408315918,1773403846356,-41379.89145124,0.0002,2]
[408315921,1773404178864,152.0,0.00032876,120]
[408315922,1773404500200,187.4,0.00028266,120]
[408315924,1773404951135,-250.0,0.00015,2]
[408315925,1773404951156,-1082.09,0.00016129,2]
[408315926,1773404951176,-132.53661177,0.00016712,2]
[408315927,1773405032020,-34.10338823,0.00016712,2]
[408315928,1773405032029,-450.35,0.00018713,2]
[408315929,1773405032237,-51.85839738,0.00018779,2]
[408315930,1773405032249,-153.69160262,0.00018779,2]
[408315931,1773405032259,-200.0,0.00018817,2]
[408315932,1773405032269,-150.0,0.00018817,2]
[408315933,1773405032279,-562.39,0.00018817,2]
[408315934,1773405032288,-150.0,0.00018836,2]
[408315935,1773405032297,-187.4,0.00018844,2]
[408315936,1773405032306,-308.86589156,0.000189,2]
[408315937,1773405032315,-786.45142,0.00019,2]
[408315938,1773405032325,-562.39,0.00019287,2]
[408315939,1773405032334,-300.0,0.00019499,2]
[408315940,1773405032343,-2062.89661282,0.000195,2]
[408315941,1773405032352,-8012.04464658,0.000195,2]
[408315942,1773405032361,-150.0,0.00019562,2]
[408315943,1773405032370,-150.0,0.00019562,2]
[408315944,1773405032379,-150.0,0.00019562,2]
[408315945,1773405032389,-500.0,0.00019562,2]
[408315946,1773405032399,-167.5639393,0.00019562,2]
[408315947,1773405032409,-150.0,0.00019562,2]
[408315948,1773405032418,-150.0,0.00019562,2]
[408315949,1773405032428,-500.0,0.00019562,2]
[408315950,1773405032437,-500.0,0.00019562,2]
[408315951,1773405032446,-500.0,0.00019562,2]
[408315952,1773405032455,-500.0,0.00019562,2]
[408315953,1773405032464,-150.0,0.00019562,2]
[408315954,1773405032473,-500.0,0.00019562,2]
[408315955,1773405032482,-500.0,0.00019562,2]
[408315956,1773405032490,-281.72961941,0.00019562,2]
[408315957,1773405032500,-500.0,0.00019562,2]
[408315958,1773405032509,-150.0,0.00019562,2]
[408315959,1773405032517,-150.0,0.00019617,2]
[408315960,1773405032526,-253.69312086,0.00019617,2]
[408315961,1773405032535,-500.0,0.00019617,2]
[408315962,1773405032544,-165.4706198,0.00019617,2]
[408315963,1773405032553,-500.0,0.00019617,2]
[408315964,1773405032561,-500.0,0.00019617,2]
[408315965,1773405032570,-500.0,0.00019617,2]
[408315966,1773405032579,-550.0,0.00019617,2]
[408315967,1773405032588,-150.0,0.00019617,2]
[408315968,1773405032597,-500.0,0.00019617,2]
[408315969,1773405032605,-500.0,0.00019617,2]
[408315970,1773405032614,-500.0,0.00019617,2]
[408315971,1773405032623,-150.0,0.00019617,2]
[408315972,1773405032631,-150.0,0.00019626,2]
[408315973,1773405032640,-150.0,0.00019626,2]
[408315974,1773405032650,-150.0,0.00019626,2]
[408315975,1773405032659,-500.0,0.00019626,2]
[408315976,1773405032668,-175.89347199,0.00019672,2]
[408315977,1773405032676,-356.54492345,0.00019672,2]
[408315978,1773405032685,-167.32942048,0.00019672,2]
[408315979,1773405032694,-500.0,0.00019672,2]
[408315980,1773405032704,-500.0,0.00019672,2]
[408315981,1773405032713,-212.07061188,0.00019672,2]
[408315982,1773405032722,-500.0,0.00019672,2]
[408315983,1773405032732,-349.08843047,0.00019672,2]
[408315984,1773405032741,-500.0,0.00019672,2]
[408315985,1773405032751,-150.0,0.00019672,2]
[408315986,1773405032760,-2807.0,0.0001968,2]
[408315987,1773405032769,-152.33368801,0.00019681,2]
[408315988,1773405032779,-150.0,0.00019681,2]
[408315989,1773405032789,-150.0,0.00019681,2]
[408315990,1773405032797,-600.0,0.00019681,2]
[408315991,1773405032807,-8174.8128,0.000197,2]
[408315992,1773405032817,-3802.0139,0.000197,2]
[408315993,1773405032826,-618.31536519,0.000197,2]
[408315994,1773405032836,-234.5008,0.000197,2]
[408315995,1773405032846,-14279.90110177,0.000197,2]
[408315996,1773405032858,-1521.68319823,0.000197,2]
[408315997,1773405032868,-618.31536516,0.00019722,2]
[408315998,1773405032877,-200.0,0.00019726,2]
[408315999,1773405032887,-200.0,0.00019726,2]
[408316000,1773405032897,-150.0,0.00019726,2]
[408316001,1773405032907,-150.0,0.00019726,2]
[408316002,1773405032916,-150.0,0.00019726,2]
[408316003,1773405032925,-500.0,0.00019726,2]
[408316004,1773405032934,-509.35065853,0.00019726,2]
[408316005,1773405032944,-500.0,0.00019726,2]
[408316006,1773405032954,-219.88127929,0.00019726,2]
[408316007,1773405032963,-150.0,0.00019726,2]
[408316008,1773405032972,-150.0,0.00019736,2]
[408316009,1773405032982,-150.0,0.00019736,2]
[408316010,1773405032992,-618.31536516,0.00019744,2]
[408316011,1773405033001,-562.39,0.00019758,2]
[408316012,1773405033011,-618.31536516,0.00019767,2]
[408316013,1773405033020,-163.3177747,0.00019773,2]
[408316014,1773405033030,-500.0,0.00019773,2]
[408316015,1773405033040,-500.0,0.00019773,2]
[408316016,1773405033049,-500.0,0.00019773,2]
[408316017,1773405033058,-150.0,0.00019781,2]
[408316018,1773405033072,-500.0,0.00019781,2]
[408316019,1773405033081,-500.0,0.00019781,2]
[408316020,1773405033090,-216.0,0.00019781,2]
[408316021,1773405033100,-618.31536516,0.00019789,2]
[408316022,1773405033111,-150.0,0.0001979,2]
[408316023,1773405033120,-150.0,0.0001979,2]
[408316024,1773405033130,-500.0,0.00019799,2]
[408316025,1773405033140,-500.0,0.00019799,2]
[408316026,1773405033150,-500.0,0.00019799,2]
[408316027,1773405033160,-500.0,0.00019799,2]
[408316028,1773405033169,-1595.4902,0.000198,2]
[408316029,1773405033179,-618.31536516,0.00019811,2]
[408316030,1773405033189,-205.55,0.00019822,2]
[408316031,1773405033198,-618.31536516,0.00019833,2]
[408316032,1773405033208,-200.0,0.00019836,2]
[408316033,1773405033218,-500.0,0.00019836,2]
[408316034,1773405033227,-500.0,0.00019836,2]
[408316035,1773405033236,-150.0,0.00019845,2]
[408316036,1773405033245,-150.0,0.00019845,2]
[408316037,1773405033255,-618.31536516,0.00019856,2]
[408316038,1773405033264,-618.31536516,0.00019878,2]
[408316039,1773405033273,-500.0,0.00019891,2]
[408316040,1773405033283,-606.05975024,0.00019891,2]
[408316041,1773405033292,-250.0,0.000199,2]
[408316042,1773405033300,-11.26378573,0.000199,2]
[408316043,1773405033312,-141.12628661,0.000199,2]
[408316044,1773405033322,-770.60076813,0.000199,2]
[408316045,1773405033333,-454.02947525,0.000199,2]
[408316046,1773405033344,-706.49,0.000199,2]
[408316047,1773405033356,-1691.70195662,0.000199,2]
[408316048,1773405033365,-419.18383325,0.000199,2]
[408316049,1773405033374,-618.31536516,0.000199,2]
[408316050,1773405033384,-18758.5347555,0.000199,2]
[408316051,1773405038135,-150.0,0.00019525,2]
[408316052,1773405038147,-150.0,0.00019525,2]
[408316053,1773405038159,-150.0,0.00019525,2]
[408316054,1773405038169,-150.0,0.00019525,2]
[408316055,1773405038179,-150.0,0.00019525,2]
[408316056,1773405038189,-200.0,0.0001958,2]
[408316057,1773405038198,-150.0,0.0001958,2]
[408316058,1773405038207,-150.0,0.0001958,2]
[408316059,1773405038217,-200.0,0.00019635,2]
[408316060,1773405038227,-200.0,0.00019635,2]
[408316061,1773405038236,-7236.46739913,0.000199,2]
[408316062,1773405038245,-631.7066651,0.000199,2]
[408316063,1773405038254,-200.76634596,0.000199,2]
[408316064,1773405038264,-555.89328772,0.000199,2]
[408316065,1773405038273,-304.03813108,0.00019946,2]
[408316066,1773405038283,-500.0,0.00019973,2]
[408316067,1773405038292,-500.0,0.00019973,2]
[408316068,1773405038302,-501.62823002,0.00019973,2]
[408316069,1773405038312,-500.0,0.00019973,2]
[408316070,1773405038322,-500.0,0.00019973,2]
[408316071,1773405038333,-500.0,0.00019973,2]
[408316072,1773405038343,-500.0,0.00019973,2]
[408316073,1773405038353,-500.0,0.00019973,2]
[408316074,1773405038363,-501.1994605,0.00019973,2]
[408316075,1773405038374,-500.0,0.00019973,2]
[408316076,1773405038384,-1206.47855834,0.0001999,2]
[408316077,1773405038394,-251.56243348,0.0001999,2]
[408316078,1773405038407,-162.86865341,0.0001999,2]
[408316079,1773405038417,-162.86865341,0.0001999,2]
[408316080,1773405038428,-151.0,0.00019997,2]
[408316081,1773405038439,-500.0,0.00019999,2]
[408316082,1773405038449,-500.0,0.00019999,2]
[408316083,1773405038459,-269.60361192,0.00019999,2]
[408316084,1773405038469,-171.15204419,0.00019999,2]
[408316086,1773405038479,-500.0,0.00019999,2]
[408316088,1773405038488,-517.51930212,0.00019999,2]
[408316090,1773405038498,-49025.24722351,0.0002,2]
[408316097,1773405038560,-233.43348728,0.0002,2]
[408316099,1773405038571,-2167.58075518,0.0002,2]
[408316101,1773405038583,-19468.68671659,0.0002,2]
[408316103,1773405038605,-150.0,0.00019525,2]
[408316105,1773405038613,-319.10245822,0.0002,2]
[408316107,1773405038625,-72577.150185,0.0002,2]
[408316109,1773405038636,-1682.00254091,0.0002,2]
[408316110,1773405038646,-640.14698549,0.0002,2]
[408316111,1773405038659,-5753.47089063,0.0002,2]
[408316122,1773405040356,-150.0,0.00019525,2]
[408316123,1773405040377,-150.0,0.0001958,2]
[408316124,1773405040396,-200.0,0.00019635,2]
[408316125,1773405040409,-2085.95284354,0.000199,2]
[408316126,1773405040423,-1000.85815646,0.0002,2]
[408316127,1773405040439,-1820.89468532,0.0002,2]
[408316128,1773405040536,-34472.19650541,0.0002,2]
[408316129,1773405040550,-2943.95635846,0.0002,2]
[408316130,1773405040566,-5239.89376426,0.0002,2]
[408316131,1773405040599,-16048.5469804,0.0002,2]
[408316132,1773405040612,-2003.88937486,0.0002,2]
[408316133,1773405040772,-91267.73583058,0.0002,2]
[408316134,1773405040784,-57434.19192081,0.0002,2]
[408316135,1773405040796,-13490.106332,0.0002,2]
[408316136,1773405040807,-3332000.50838923,0.0002,2]
[408316137,1773405040833,-1540.31369974,0.0002,2]
[408316138,1773405040844,-412.0,0.0002,2]
[408316139,1773405040855,-1129.88383513,0.0002,2]
[408316140,1773405040866,-3803.66614087,0.0002,2]
[408316146,1773405043212,-4615.70233408,0.0002,2]
[408316147,1773405043226,-74741.36485715,0.0002,2]
[408316148,1773405043269,-6181.42393668,0.0002,2]
[408316149,1773405043280,-8150.42073168,0.0002,2]
[408316152,1773405046036,-503.0,0.0002,2]
[408316153,1773405046094,-89098.73302021,0.0002,2]
[408316154,1773405046368,-1177.17824859,0.0002,2]
[408316155,1773405046380,-5633.39656101,0.0002,2]
[408316156,1773405046425,-450042.25259875,0.0002,2]
[408316157,1773405046434,-30167.76724342,0.0002,2]
[408316159,1773405065707,1118.89290445,0.00021999,120]
[408316161,1773405639199,155.0,0.000136,60]
[408316163,1773406177832,150.9,0.00032876,120]
[408316168,1773406232203,-848.0,0.000184,2]
[408316169,1773406232213,-166.66,0.00018456,2]
[408316170,1773406232222,-164.59473186,0.00018727,2]
[408316171,1773406232231,-104.93411031,0.00018827,2]
[408316172,1773406232243,-1895.06588969,0.00018827,2]